bitfinex-derivatives/quotes_ETHF0:USTF0_20250629
["timestamp","ask_amount","ask_price","bid_price","bid_amount"]
[1751190283745,2.22325,2455.4,2455.3,1.61174207]
[1751190285344,2.22325,2455.4,2455.3,2.42603207]
[1751190285544,2.22325,2455.4,2455.3,1.61174207]
[1751190286142,34.23225,2455.4,2455.3,1.61174207]
[1751190286447,2.22325,2455.4,2455.3,1.61174207]
[1751190286644,34.23125,2455.4,2455.3,2.42603207]
[1751190287043,34.23125,2455.4,2455.3,1.61174207]
[1751190293253,35.75515,2455.4,2455.3,1.61174207]
[1751190293855,0.81442,2454.9,2454.8,6.42855609]
[1751190294047,35.72826529,2454.9,2454.8,6.42855609]
[1751190296154,34.91384529,2454.9,2454.8,7.24300609]
[1751190296455,31.988,2454.9,2454.8,7.24300609]
[1751190297056,31.988,2454.9,2454.8,8.71980609]
[1751190297356,31.988,2454.9,2454.8,5.49905]
[1751190298055,31.988,2454.9,2454.8,3.2078]
[1751190298251,61.11214529,2454.9,2454.8,1.20973407]
[1751190298442,0.81458,2454.4,2454.3,3.22609626]
[1751190298647,0.81458,2454.4,2454.3,1.552]
[1751190298648,35.72142529,2454.4,2454.3,1.552]
[1751190299255,35.72142529,2454.4,2454.3,2.76096777]
[1751190300352,35.72142529,2454.4,2454.3,1.20896777]
[1751190300854,0.81462,2454.3,2454.2,3.2078]
[1751190301058,2.22542,2454.3,2454.2,3.2078]
[1751190302563,0.81465,2454.2,2454.1,1.5127]
[1751190302759,29.02749529,2454.2,2454.1,1.5127]
[1751190303561,0.81468,2454.1,2454.0,1.552]
[1751190304556,0.81468,2454.1,2454.0,2.36672]
[1751190304958,0.81468,2454.1,2454.0,1.552]
[1751190305356,6.693,2454.2,2454.1,0.81468]
[1751190305654,2.92084529,2454.6,2454.1,0.81468]
[1751190305655,6.693,2454.6,2454.5,0.81453]
[1751190305865,6.693,2454.6,2454.5,4.02233]
[1751190306052,31.978,2454.6,2454.5,5.22895298]
[1751190306364,46.918,2454.9,2454.7,0.81448]
[1751190306365,0.81447,2454.8,2454.7,0.81448]
[1751190306557,32.79147,2454.8,2454.7,0.81446]
[1751190306957,32.79147,2454.8,2454.7,3.83486]
[1751190307261,31.978,2454.8,2454.7,3.83486]
[1751190307661,47.73243,2454.9,2454.8,0.81445]
[1751190307862,79.70843,2454.9,2454.8,2.22185]
[1751190308257,79.70843,2454.9,2454.8,1.4074]
[1751190308658,79.70843,2454.9,2454.8,2.22185]
[1751190309155,78.894,2454.9,2454.8,2.22185]
[1751190309556,46.918,2454.9,2454.8,2.22185]
[1751190310056,78.89,2454.9,2454.8,2.22185]
[1751190310452,78.889,2454.9,2454.8,2.22185]
[1751190310861,78.888,2454.9,2454.8,2.22185]
[1751190311064,46.918,2454.9,2454.8,2.22185]
[1751190311364,6.693,2454.9,2454.8,5.42965]
[1751190311665,31.969,2454.9,2454.8,5.42965]
[1751190312359,31.969,2454.9,2454.8,6.63627298]
[1751190312560,2.36611,2455.3,2454.8,8.74266827]
[1751190312754,9.05911,2455.3,2455.2,0.81432]
[1751190313360,0.81433,2455.2,2455.1,0.81433]
[1751190314558,9.05911,2455.3,2455.2,0.81432]
[1751190314764,32.77631,2455.3,2455.2,0.81432]
[1751190315264,32.77631,2455.3,2455.2,2.37562]
[1751190315867,32.77631,2455.3,2455.2,1.5613]
[1751190317264,3.2078,2455.7,2455.2,1.5613]
[1751190317265,9.57884529,2456.0,2455.2,9.80367298]
[1751190317466,34.84284529,2456.0,2455.9,0.81409]
[1751190318362,34.84284529,2456.0,2455.9,2.22539]
[1751190318569,2.92084529,2456.0,2455.9,2.22539]
[1751190318770,34.83984529,2456.0,2455.9,2.22539]
[1751190319170,1.5603,2456.2,2456.1,0.81402]
[1751190319359,36.39714529,2456.2,2456.1,0.81402]
[1751190319557,4.48114529,2456.2,2456.1,0.81402]
[1751190319763,36.39714529,2456.2,2456.1,0.81402]
[1751190320159,36.39614529,2456.2,2456.1,0.81402]
[1751190320569,33.4753,2456.2,2456.1,0.81402]
[1751190320877,36.39514529,2456.2,2456.1,0.81402]
[1751190321373,37.20913529,2456.2,2456.0,0.81403]
[1751190321868,36.39514529,2456.2,2455.9,1.4113]
[1751190322173,2.92084529,2456.0,2455.9,2.22537]
[1751190322372,28.17184529,2456.0,2455.9,2.22537]
[1751190322671,25.251,2456.0,2455.9,2.22539]
[1751190322871,28.98589529,2456.0,2455.9,1.4113]
[1751190323073,28.98589529,2456.0,2455.8,2.24399]
[1751190323271,28.98589529,2456.0,2455.9,0.81409]
[1751190323471,28.98589529,2456.0,2455.8,1.4299]
[1751190323673,28.98589529,2456.0,2455.8,2.24401]
[1751190324265,28.98589529,2456.0,2455.8,3.79711]
[1751190324466,0.81409,2455.9,2455.8,3.79711]
[1751190324873,0.81409,2455.9,2455.8,2.983]
[1751190325174,0.81412,2455.8,2455.7,3.2078]
[1751190325368,37.19126529,2455.8,2455.7,3.2078]
[1751190326667,0.81412,2455.8,2455.7,3.2078]
[1751190326872,32.71112,2455.8,2455.7,3.2078]
[1751190330675,34.13752,2455.8,2455.7,3.2078]
[1751190331573,0.81422,2455.5,2455.4,2.01695997]
[1751190331776,0.81422,2455.5,2455.4,4.41050997]
[1751190331970,0.81422,2455.5,2455.4,3.2078]
[1751190333075,2.27972,2455.5,2455.4,3.2078]
[1751190333479,0.81435,2455.1,2455.0,1.20270997]
[1751190333779,35.62019529,2455.1,2455.0,1.20270997]
[1751190334278,0.81438,2455.0,2454.9,1.20270997]
[1751190334473,2.26338,2455.0,2454.9,1.20270997]
[1751190334672,1.449,2455.0,2454.9,1.20270997]
[1751190334875,6.656,2455.3,2454.9,5.91244529]
[1751190335075,1.4886,2455.2,2455.0,0.81436]
[1751190335277,1.4886,2455.2,2455.1,4.714]
[1751190335779,2.30292,2455.2,2455.1,4.714]
[1751190336475,2.30292,2455.2,2455.1,5.52835]
[1751190336684,1.4886,2455.2,2455.1,5.52835]
[1751190336985,33.3686,2455.2,2455.1,5.52835]
[1751190337177,34.18292,2455.2,2455.1,5.52835]
[1751190337487,33.3686,2455.2,2455.1,5.52835]
[1751190338682,34.18292,2455.2,2455.1,5.52835]
[1751190339081,34.18292,2455.2,2455.1,4.714]
[1751190339276,0.81435,2455.1,2455.0,1.20270997]
[1751190339582,0.81438,2455.0,2454.9,1.20270997]
[1751190340174,26.03638,2455.0,2454.9,1.20270997]
[1751190340377,2.26327,2455.4,2455.2,0.81431]
[1751190340576,31.877,2455.3,2455.2,0.81432]
[1751190342077,32.69129,2455.3,2455.2,0.81432]
[1751190342385,31.877,2455.3,2455.2,0.81432]
[1751190342586,1.449,2455.4,2455.3,0.81429]
[1751190342785,33.323,2455.4,2455.3,0.81429]
[1751190343684,34.13725,2455.4,2455.3,0.81429]
[1751190344081,0.8143,2455.3,2455.2,0.81429]
[1751190344384,2.2986,2455.3,2455.2,0.81429]
[1751190344989,0.81435,2455.1,2455.0,1.20587638]
[1751190346386,0.81435,2455.1,2455.0,2.02025638]
[1751190346688,25.216,2455.2,2455.0,2.02025638]
[1751190346689,26.03034,2455.2,2455.0,2.02025638]
[1751190347182,0.81435,2455.1,2455.0,2.02025638]
[1751190347387,25.216,2455.2,2455.0,1.20587638]
[1751190347582,26.03034,2455.2,2455.0,0.81438]
[1751190348384,0.81435,2455.1,2455.0,0.81438]
[1751190348575,26.03034,2455.2,2455.0,0.81438]
[1751190348775,1.4843,2455.3,2455.2,0.81432]
[1751190348984,33.3243,2455.3,2455.1,4.02213]
[1751190349180,33.3243,2455.3,2455.0,0.81437]
[1751190349381,0.81434,2455.2,2454.9,1.20587638]
[1751190349688,0.81434,2455.2,2455.1,0.81435]
[1751190350081,0.81435,2455.1,2455.0,0.81437]
[1751190350283,33.3243,2455.3,2454.9,1.20587638]
[1751190350486,0.81438,2455.1,2454.9,1.20587638]
[1751190350693,0.81438,2455.1,2455.0,0.81438]
[1751190350891,26.02338,2455.1,2455.0,0.81438]
[1751190351601,2.29862,2455.3,2455.2,0.81432]
[1751190351802,34.13762,2455.3,2455.2,0.81432]
[1751190352101,34.13662,2455.3,2455.2,0.81432]
[1751190352700,34.13562,2455.3,2455.2,0.81432]
[1751190353295,0.81435,2455.2,2455.1,0.81434]
[1751190353794,32.64935,2455.2,2455.1,0.81434]
[1751190353993,0.81435,2455.2,2455.1,0.81434]
[1751190354197,32.64935,2455.2,2455.1,0.81434]
[1751190354897,0.81435,2455.2,2455.1,0.81434]
[1751190355102,32.64935,2455.2,2455.1,0.81434]
[1751190358304,32.64935,2455.2,2455.1,2.02021638]
[1751190359299,32.64935,2455.2,2455.1,3.50301638]
[1751190359496,31.835,2455.2,2455.1,3.50301638]
[1751190359797,0.81427,2455.4,2455.1,5.89647638]
[1751190360003,0.81427,2455.4,2455.3,0.81429]
[1751190360203,32.64127,2455.4,2455.3,0.81429]
[1751190360411,31.827,2455.4,2455.3,0.81429]
[1751190361107,1.4391,2455.7,2455.3,4.40264981]
[1751190361301,46.91,2455.8,2455.7,0.81415]
[1751190361502,78.735,2455.8,2455.7,0.81415]
[1751190362203,53.54,2455.8,2455.7,2.36255]
[1751190362408,78.735,2455.8,2455.7,2.36255]
[1751190363307,53.54,2455.8,2455.7,2.36255]
[1751190363505,78.733,2455.8,2455.7,2.36255]
[1751190364408,53.54,2455.8,2455.7,2.36255]
[1751190364597,78.73,2455.8,2455.7,5.57035]
[1751190364798,1.4484,2456.2,2456.1,0.81402]
[1751190365003,6.629,2456.2,2456.1,0.81402]
[1751190365404,6.629,2456.2,2456.1,5.20392]
[1751190366505,50.83618481,2456.5,2456.4,0.81392]
[1751190366710,82.65218481,2456.5,2456.4,0.81392]
[1751190367307,0.81394,2456.4,2456.1,4.3899]
[1751190367613,82.65218481,2456.5,2456.3,0.81393]
[1751190367816,0.81392,2456.4,2456.3,0.81393]
[1751190368017,25.99692,2456.4,2456.3,0.81393]
[1751190368809,25.99692,2456.4,2456.2,0.81396]
[1751190369009,0.81395,2456.3,2456.2,0.81396]
[1751190369208,0.81395,2456.3,2456.2,0.81399]
[1751190369209,32.62298,2456.3,2456.2,0.81399]
[1751190369513,0.81399,2456.2,2456.1,3.7175]
[1751190370103,0.81399,2456.2,2456.1,1.4828]
[1751190370304,0.81402,2456.1,2456.0,3.2078]
[1751190370608,28.97832,2456.1,2456.0,3.2078]
[1751190371311,28.97832,2456.1,2456.0,4.02185]
[1751190371808,2.9873,2456.1,2456.0,4.02185]
[1751190372014,28.1623,2456.1,2456.0,4.02185]
[1751190372312,28.1623,2456.1,2456.0,5.53345]
[1751190372513,28.1623,2456.1,2456.0,6.73932638]
[1751190373108,28.97632,2456.1,2456.0,6.73932638]
[1751190373308,28.97632,2456.1,2456.0,5.92527638]
[1751190373514,0.81405,2456.0,2455.9,2.01993638]
[1751190373708,28.97634,2456.1,2456.0,0.81405]
[1751190373910,28.97634,2456.1,2455.9,2.01995638]
[1751190374311,28.97634,2456.1,2456.0,1.20587638]
[1751190374712,0.81405,2456.0,2455.9,1.20587638]
[1751190376217,0.81409,2455.9,2455.8,1.20587638]
[1751190376418,7.44109,2455.9,2455.8,2.01999638]
[1751190376918,0.81412,2455.8,2455.7,5.22782638]
[1751190377117,0.81412,2455.8,2455.7,5.22432449]
[1751190377520,0.81412,2455.8,2455.7,3.2078]
[1751190378914,6.416517,2455.8,2455.7,3.2078]
[1751190379115,7.946317,2455.8,2455.7,3.2078]
[1751190380720,6.416517,2455.8,2455.7,3.2078]
[1751190380922,32.58012,2455.8,2455.7,3.2078]
[1751190381426,0.81412,2455.8,2455.7,3.2078]
[1751190381632,32.57912,2455.8,2455.7,3.2078]
[1751190388724,7.41812,2455.8,2455.7,3.2078]
[1751190388925,32.57112,2455.8,2455.7,3.2078]
[1751190389433,31.757,2455.8,2455.7,4.02195]
[1751190390128,6.1951,2456.1,2456.0,0.81405]
[1751190390129,2.9873,2456.1,2456.0,0.81405]
[1751190390434,33.2689,2456.1,2456.0,0.81405]
[1751190391927,1.5119,2456.1,2456.0,0.81405]
[1751190392129,33.2669,2456.1,2456.0,2.24155]
[1751190392324,8.1159,2456.1,2456.0,2.24155]
[1751190392543,33.2659,2456.1,2456.0,2.24155]
[1751190393432,8.48718225,2456.4,2456.3,0.81395]
[1751190393732,0.81398,2456.3,2456.2,0.81397]
[1751190396135,41.71767225,2456.4,2456.3,0.81395]
[1751190396335,41.71267225,2456.4,2456.3,0.81395]
[1751190396535,9.96467225,2456.4,2456.3,0.81395]
[1751190396740,41.71167225,2456.4,2456.3,0.81395]
[1751190397032,16.56867225,2456.4,2456.3,0.81395]
[1751190397239,41.71067225,2456.4,2456.3,0.81395]
[1751190397440,38.50287225,2456.4,2456.3,0.81395]
[1751190397730,38.50287225,2456.4,2456.2,0.81396]
[1751190397935,0.81395,2456.3,2456.2,0.81396]
[1751190398834,0.81399,2456.2,2456.1,2.26199]
[1751190399140,0.81402,2456.1,2456.0,5.83767449]
[1751190399337,0.81402,2456.1,2456.0,5.22422449]
[1751190399839,0.81402,2456.1,2456.0,4.41017449]
[1751190400232,0.81402,2456.1,2456.0,1.20237449]
[1751190400647,0.81405,2456.0,2455.9,1.20237449]
[1751190400836,36.92278225,2456.0,2455.9,1.20237449]
[1751190403243,34.00125,2456.0,2455.9,1.20237449]
[1751190403453,34.00125,2456.0,2455.9,2.65037449]
[1751190404841,36.91978225,2456.0,2455.9,1.448]
[1751190405241,36.91978225,2456.0,2455.9,2.65415015]
[1751190406938,36.91778225,2456.0,2455.9,2.65415015]
[1751190407139,36.91578225,2456.0,2455.9,2.65415015]
[1751190408342,36.91578225,2456.0,2455.9,1.20615015]
[1751190408941,36.89378225,2456.0,2455.9,1.20615015]
[1751190411748,0.81409,2455.9,2455.8,1.20615015]
[1751190411942,0.81412,2455.8,2455.7,4.41395015]
[1751190412142,25.93812,2455.8,2455.7,4.41395015]
[1751190413350,0.81412,2455.8,2455.7,4.41395015]
[1751190413551,32.51812,2455.8,2455.7,4.41395015]
[1751190415053,32.51812,2455.8,2455.7,5.82735015]
[1751190415252,0.81412,2455.8,2455.7,4.41395015]
[1751190415441,32.51612,2455.8,2455.7,4.41395015]
[1751190416948,35.43465225,2455.8,2455.7,4.6713]
[1751190417154,35.43465225,2455.8,2455.7,5.87814206]
[1751190417948,35.43465225,2455.8,2455.7,5.87818328]
[1751190419352,35.43465225,2455.8,2455.7,6.69233328]
[1751190419651,35.43465225,2455.8,2455.7,5.48545]
[1751190419854,1.4492,2456.0,2455.9,0.81409]
[1751190419855,0.81406,2456.0,2455.9,0.81409]
[1751190420047,31.697,2456.0,2455.9,2.0209931]
[1751190420450,0.81403,2456.1,2456.0,0.81405]
[1751190420751,32.51103,2456.1,2456.0,2.32145]
[1751190421552,7.39603,2456.1,2456.0,2.32145]
[1751190421857,31.696,2456.1,2456.0,2.32145]
[1751190422155,31.696,2456.1,2456.0,3.5283531]
[1751190422848,31.696,2456.1,2456.0,6.7361531]
[1751190423046,1.5299,2456.2,2456.1,0.81402]
[1751190423246,3.2078,2456.4,2456.1,1.5292]
[1751190423550,31.693,2456.3,2456.2,2.30629]
[1751190423755,31.693,2456.3,2456.2,5.40509]
[1751190424151,31.693,2456.3,2456.2,6.6119931]
[1751190424954,32.50695,2456.3,2456.2,6.6119931]
[1751190425459,31.693,2456.3,2456.2,6.6119931]
[1751190425952,32.50695,2456.3,2456.2,3.5500931]
[1751190426342,32.50695,2456.3,2456.2,2.34319]
[1751190426546,32.50695,2456.3,2456.2,3.5500931]
[1751190426747,31.693,2456.3,2456.2,3.5500931]
[1751190426956,32.50695,2456.3,2456.2,3.5500931]
[1751190427156,32.50695,2456.3,2456.2,1.5292]
[1751190427355,32.50695,2456.3,2456.2,0.81399]
[1751190427757,31.693,2456.3,2456.2,0.81399]
[1751190428863,32.50695,2456.3,2456.2,0.81399]
[1751190429062,32.50698,2456.3,2456.1,1.2069031]
[1751190429256,2.91853225,2456.2,2456.1,2.0209131]
[1751190429963,3.73252225,2456.2,2456.1,1.2069031]
[1751190431560,0.81402,2456.1,2456.0,4.4147031]
[1751190431760,27.39342,2456.1,2456.0,4.4147031]
[1751190432262,2.29442,2456.1,2456.0,4.4147031]
[1751190432657,33.97242,2456.1,2456.0,4.4147031]
[1751190433860,33.97242,2456.1,2456.0,3.2078]
[1751190434061,35.45892,2456.1,2456.0,3.2078]
[1751190438167,0.81412,2455.8,2455.7,4.4147031]
[1751190438468,25.90512,2455.8,2455.7,4.4147031]
[1751190438868,28.89252,2455.8,2455.7,4.4147031]
[1751190441271,35.45152,2455.8,2455.7,4.4147031]
[1751190442674,35.45152,2455.8,2455.7,3.2078]
[1751190444167,0.81419,2455.6,2455.5,1.2069031]
[1751190444373,0.81422,2455.5,2455.4,4.4147031]
[1751190444570,2.34512,2455.5,2455.4,4.4147031]
[1751190445474,33.99212,2455.5,2455.4,5.2289531]
[1751190446067,33.99212,2455.5,2455.4,6.6725531]
[1751190446374,33.99212,2455.5,2455.4,4.6514]
[1751190446973,33.99212,2455.5,2455.4,7.04165]
[1751190447777,33.99212,2455.5,2455.4,6.2274]
[1751190447968,0.81422,2455.5,2455.4,7.04164]
[1751190448275,31.643,2455.5,2455.4,8.2485331]
[1751190448671,0.81419,2455.6,2455.5,0.81422]
[1751190448874,31.643,2455.6,2455.5,2.34712]
[1751190449178,6.561,2455.6,2455.5,1.5329]
[1751190449471,0.8141,2455.9,2455.8,0.81412]
[1751190449677,32.4561,2455.9,2455.8,0.81412]
[1751190451376,0.81413,2455.8,2455.7,0.81413]
[1751190452179,7.3751,2455.9,2455.8,0.81412]
[1751190452381,32.4531,2455.9,2455.8,0.81412]
[1751190453482,46.903,2456.0,2455.9,0.81409]
[1751190453680,78.542,2456.0,2455.9,0.81409]
[1751190453982,46.903,2456.0,2455.9,0.81409]
[1751190454178,78.541,2456.0,2455.9,2.29329]
[1751190455070,79.35505,2456.0,2455.9,2.29329]
[1751190455883,82.27358225,2456.0,2455.9,1.4792]
[1751190458477,82.27360225,2456.0,2455.8,2.0210231]
[1751190458782,0.81409,2455.9,2455.8,3.4791231]
[1751190459584,0.81409,2455.9,2455.8,2.6650031]
[1751190460274,25.88409,2455.9,2455.8,3.4791231]
[1751190461787,25.07,2455.9,2455.8,3.4791231]
[1751190462181,46.903,2456.0,2455.9,0.81409]
[1751190462384,79.34605,2456.0,2455.9,2.28819]
[1751190462689,79.34305,2456.0,2455.9,3.4950931]
[1751190463791,47.71705,2456.0,2455.9,3.4950931]
[1751190463990,78.528,2456.0,2455.9,3.4950931]
[1751190464495,79.34205,2456.0,2455.9,3.4950931]
[1751190465095,79.34205,2456.0,2455.9,6.7028931]
[1751190465896,47.71705,2456.0,2455.9,6.7028931]
[1751190466087,4.02171,2456.5,2455.9,15.01815602]
[1751190466293,3.2078,2456.5,2456.4,0.81392]
[1751190466493,34.8268,2456.5,2456.4,0.81392]
[1751190467093,35.64069,2456.5,2456.4,0.81392]
[1751190467296,34.8268,2456.5,2456.2,1.4733]
[1751190467494,35.64071,2456.5,2456.4,0.81392]
[1751190468003,4.02171,2456.5,2456.4,0.81392]
[1751190468203,7.37391,2456.5,2456.4,2.28722]
[1751190468407,32.43091,2456.5,2456.4,2.28722]
[1751190469103,51.35053225,2456.7,2456.4,1.4733]
[1751190469104,49.24584,2456.7,2456.4,1.4733]
[1751190469301,49.24584,2456.7,2456.6,0.81385]
[1751190469501,79.31184,2456.7,2456.6,0.81385]
[1751190470300,47.71884,2456.7,2456.6,0.81385]
[1751190470506,79.31184,2456.7,2456.6,0.81385]
[1751190470707,0.81386,2456.6,2456.5,0.81386]
[1751190471907,0.81391,2456.5,2456.4,0.81391]
[1751190472107,0.81392,2456.4,2456.3,3.59713363]
[1751190472307,25.86592,2456.5,2456.4,0.81392]
[1751190473908,0.81392,2456.4,2456.3,2.39255]
[1751190474309,0.81392,2456.4,2456.3,1.5786]
[1751190474509,0.81395,2456.3,2456.2,5.22636363]
[1751190474707,32.39995,2456.3,2456.2,5.22636363]
[1751190478110,32.39995,2456.3,2456.2,4.41240363]
[1751190478611,32.39995,2456.3,2456.2,5.22639363]
[1751190478806,32.39995,2456.3,2456.2,4.41240363]
[1751190479510,32.39995,2456.3,2456.2,5.22639363]
[1751190480512,32.39995,2456.3,2456.2,4.41240363]
[1751190481112,32.39995,2456.3,2456.2,5.26693007]
[1751190482209,3.79575,2456.4,2456.2,5.26693007]
[1751190482410,0.8139,2456.5,2456.4,0.81389]
[1751190482603,32.3879,2456.5,2456.4,0.81389]
[1751190482807,0.8139,2456.5,2456.4,0.81389]
[1751190483209,32.3869,2456.5,2456.4,0.85442644]
[1751190483713,31.573,2456.5,2456.4,2.05906007]
[1751190485418,0.81386,2456.6,2456.5,0.81389]
[1751190485610,32.38586,2456.6,2456.5,4.02169]
[1751190486117,32.38586,2456.6,2456.5,4.06222644]
[1751190486811,0.81386,2456.6,2456.5,4.06222644]
[1751190487018,32.38286,2456.6,2456.5,5.51702644]
[1751190489618,32.38285,2456.6,2456.5,6.96912644]
[1751190490118,0.81385,2456.6,2456.5,6.96912644]
[1751190490318,32.37885,2456.6,2456.5,8.17373007]
[1751190492720,0.81385,2456.6,2456.5,8.17373007]
[1751190493019,32.37385,2456.6,2456.5,8.17373007]
[1751190493419,31.56,2456.6,2456.5,8.17373007]
[1751190493624,32.37385,2456.6,2456.5,8.17373007]
[1751190494920,32.37185,2456.6,2456.5,8.17373007]
[1751190495422,32.37185,2456.6,2456.5,6.96912644]
[1751190495721,0.81385,2456.6,2456.5,6.96912644]
[1751190496020,32.36985,2456.6,2456.5,6.96912644]
[1751190496820,32.36985,2456.6,2456.5,4.70043644]
[1751190497327,32.36985,2456.6,2456.5,4.85197021]
[1751190497521,32.36985,2456.6,2456.5,5.66586021]
[1751190498429,0.81385,2456.6,2456.5,5.66586021]
[1751190498618,32.36685,2456.6,2456.5,5.66586021]
[1751190500729,0.81385,2456.6,2456.5,5.66586021]
[1751190501029,32.34285,2456.6,2456.5,5.66586021]
[1751190501224,0.81367,2457.2,2456.7,2.03456]
[1751190501422,6.517,2456.9,2456.8,9.35239733]
[1751190501735,0.81367,2457.2,2457.1,0.81366]
[1751190501923,32.34167,2457.2,2457.1,2.01883194]
[1751190502115,32.34167,2457.2,2457.1,2.05936838]
[1751190502627,37.34167,2457.2,2457.1,0.04053644]
[1751190502927,2.03442,2456.9,2456.3,0.81394]
[1751190503121,0.81391,2456.5,2456.3,0.81394]
[1751190503316,32.9719,2456.4,2456.3,0.81394]
[1751190503525,33.78582,2456.4,2456.2,3.2078]
[1751190503928,0.81395,2456.3,2456.2,3.2078]
[1751190504228,0.81395,2456.3,2456.2,4.02177]
[1751190504528,33.78584,2456.4,2456.2,4.02176]
[1751190504728,0.81395,2456.3,2456.2,3.2078]
[1751190505233,0.81395,2456.3,2456.2,4.02179]
[1751190505425,0.81395,2456.3,2456.2,3.2078]
[1751190505929,2.29415,2456.3,2456.2,3.2078]
[1751190507828,0.81408,2456.0,2455.8,2.29961]
[1751190508028,33.0588,2455.9,2455.8,2.29961]
[1751190509023,33.87289,2455.9,2455.8,1.4855]
[1751190509219,33.0588,2455.9,2455.8,2.29962]
[1751190509439,33.0588,2455.9,2455.7,0.81413]
[1751190509440,33.87289,2455.9,2455.7,0.81413]
[1751190509734,33.87289,2455.9,2455.7,2.28573]
[1751190509926,33.87289,2455.9,2455.8,0.81412]
[1751190510125,33.0588,2455.9,2455.8,2.28572]
[1751190510535,33.87289,2455.9,2455.8,2.28572]
[1751190510828,33.0588,2455.9,2455.8,2.28572]
[1751190511333,1.5358,2455.9,2455.8,2.28572]
[1751190511634,33.0588,2455.9,2455.8,2.28572]
[1751190512128,1.5358,2455.9,2455.8,2.28572]
[1751190512327,33.0578,2455.9,2455.8,2.28572]
[1751190512836,33.0558,2455.9,2455.8,2.28572]
[1751190513234,33.86989,2455.9,2455.8,2.28572]
[1751190513929,33.87089,2455.9,2455.8,2.28572]
[1751190514124,33.87089,2455.9,2455.8,1.4716]
[1751190514336,0.81412,2455.8,2455.7,0.81413]
[1751190514733,0.81412,2455.8,2455.7,2.30183]
[1751190514933,33.87091,2455.9,2455.8,0.81412]
[1751190516536,33.0568,2455.9,2455.8,0.81412]
[1751190517235,33.87089,2455.9,2455.8,0.81412]
[1751190518138,33.0568,2455.9,2455.8,0.81412]
[1751190522137,33.87089,2455.9,2455.8,0.81412]
[1751190522334,33.0568,2455.9,2455.8,0.81412]
[1751190524345,1.5358,2455.9,2455.8,0.81412]
[1751190524533,33.0478,2455.9,2455.8,2.28372]
[1751190528634,33.0478,2455.9,2455.8,0.81412]
[1751190529552,33.0478,2455.9,2455.8,2.27312]
[1751190529840,0.81414,2455.8,2455.3,3.89527477]
[1751190530042,3.2078,2455.5,2455.4,2.39275]
[1751190530236,34.7138,2455.5,2455.4,6.25942477]
[1751190530836,3.2078,2455.5,2455.4,6.25942477]
[1751190531044,3.2078,2455.8,2455.7,0.81415]
[1751190531243,34.6948,2455.8,2455.7,0.81415]
[1751190531735,34.6948,2455.8,2455.7,3.85165]
[1751190532341,3.2078,2455.8,2455.7,3.85165]
[1751190532544,34.6958,2455.8,2455.7,3.85165]
[1751190533538,3.2078,2455.8,2455.7,3.85165]
[1751190533738,34.6948,2455.8,2455.7,3.85165]
[1751190534136,34.6938,2455.8,2455.7,3.85165]
[1751190536245,9.7088,2455.8,2455.7,3.85165]
[1751190536442,34.6918,2455.8,2455.7,3.85165]
[1751190540535,3.2078,2455.8,2455.7,3.85165]
[1751190540937,3.2078,2455.8,2455.7,5.45952739]
[1751190542143,3.2078,2455.8,2455.7,5.45922329]
[1751190542546,3.2078,2455.8,2455.7,3.85165]
[1751190543241,3.2078,2455.8,2455.7,5.45932424]
[1751190543441,3.2078,2455.8,2455.7,3.85165]
[1751190543950,3.2078,2455.8,2455.7,6.25932477]
[1751190545742,6.12633225,2455.8,2455.7,3.22182477]
[1751190545949,14.03693225,2455.8,2455.5,2.40767477]
[1751190546249,0.81422,2455.5,2455.4,2.40767477]
[1751190546448,38.41555225,2455.5,2455.4,2.40767477]
[1751190547039,38.41555225,2455.5,2455.4,3.22192477]
[1751190547244,38.41555225,2455.5,2455.4,0.81425]
[1751190547549,38.41555225,2455.5,2455.3,0.81426]
[1751190547752,1.5002,2455.4,2455.3,0.81426]
[1751190549252,2.31445,2455.4,2455.3,0.81426]
[1751190549649,2.31445,2455.4,2455.2,0.81429]
[1751190549853,26.5564,2455.3,2455.2,0.81429]
[1751190550154,29.47493225,2455.3,2455.2,0.81429]
[1751190551147,30.28921225,2455.3,2455.0,2.40767477]
[1751190551354,2.91853225,2455.1,2455.0,0.81438]
[1751190551649,34.38953225,2455.1,2455.0,0.81438]
[1751190552351,35.20388225,2455.1,2454.9,3.22206477]
[1751190552549,1.4746,2455.0,2454.9,3.22206477]
[1751190552750,1.4746,2455.0,2454.9,0.81439]
[1751190554348,2.28901,2455.0,2454.8,5.61547477]
[1751190554651,31.09633225,2454.9,2454.4,7.65190477]
[1751190554856,1.4931,2454.8,2454.7,0.81448]
[1751190559357,2.30755,2454.8,2454.7,0.81448]
[1751190559950,1.4931,2454.8,2454.7,0.81448]
[1751190560556,2.30755,2454.8,2454.7,0.81448]
[1751190561061,1.4931,2454.8,2454.7,0.81448]
[1751190562360,2.30755,2454.8,2454.7,0.81448]
[1751190562558,1.4931,2454.8,2454.7,0.81448]
[1751190562760,2.30755,2454.8,2454.7,0.81448]
[1751190563454,1.4931,2454.8,2454.6,0.81449]
[1751190563761,32.2675,2454.7,2454.6,0.81449]
[1751190564849,31.453,2454.7,2454.6,0.81449]
[1751190566763,35.18601225,2454.7,2454.6,0.81449]
[1751190568162,38.39381225,2454.7,2454.6,0.81449]
[1751190569958,34.6608,2454.7,2454.6,0.81449]
[1751190570265,34.6568,2454.7,2454.6,0.81449]
[1751190570864,36.1081,2454.7,2454.6,0.81449]
[1751190572259,3.2078,2454.7,2454.6,0.81449]
[1751190572459,3.2078,2454.7,2454.6,2.35949]
[1751190572667,46.911,2455.2,2455.1,0.81435]
[1751190572968,78.358,2455.2,2455.1,0.81435]
[1751190573658,78.358,2455.2,2455.1,2.40125]
[1751190575568,46.911,2455.2,2455.1,5.31978225]